fUSD/lending_fUSD_20240717
["ID","MTS","AMOUNT","RATE_DAILY","PERIOD"]
[332426794,1721174438723,799.81,0.0002222,120]
[332426797,1721174589719,471.28,0.00010799,2]
[332426798,1721174621070,155.0,0.00011199,2]
[332426799,1721174637508,1472.719,0.00011199,2]
[332426802,1721174687519,190.85340652,0.00011199,2]
[332426803,1721174705676,3110.75746026,0.00011199,2]
[332426804,1721174748987,308.2,0.00011199,2]
[332426805,1721174766267,155.0,0.00011199,2]
[332426806,1721174785480,155.30809149,0.00011199,2]
[332426807,1721174916601,1856.51301509,0.00011,7]
[332426815,1721175031943,-1622.15927746,0.00012439,2]
[332426816,1721175031997,-5851.34559932,0.00012439,2]
[332426817,1721175032007,-286.181922,0.00012476,2]
[332426818,1721175032017,-800.0,0.00012539,2]
[332426819,1721175032028,-347.49,0.00012586,2]
[332426820,1721175032039,-158.67,0.00012588,2]
[332426821,1721175032049,-9162.57884626,0.00012676,2]
[332426822,1721175032060,-845.39999995,0.00012676,2]
[332426823,1721175032072,-527.06338007,0.00012676,2]
[332426824,1721175032086,-1904.64529424,0.00012676,2]
[332426825,1721175032106,-11460.31247948,0.00012676,2]
[332426826,1721175032116,-168.77,0.00012701,2]
[332426827,1721175032126,-250.0,0.00012706,2]
[332426828,1721175032135,-4654.64,0.00012727,2]
[332426829,1721175032144,-437.64,0.00012778,2]
[332426830,1721175032154,-177.55,0.00012843,2]
[332426831,1721175032163,-418.67,0.00012843,2]
[332426832,1721175032173,-4654.62,0.00012867,2]
[332426833,1721175032182,-250.0,0.00012883,2]
[332426834,1721175032192,-630.4,0.00013043,2]
[332426835,1721175032201,-499.99,0.00013043,2]
[332426836,1721175032210,-179.99,0.00013043,2]
[332426837,1721175032220,-471.28,0.00013063,2]
[332426838,1721175032230,-150.0,0.00013117,2]
[332426839,1721175032243,-37980.46304271,0.00013118,2]
[332426840,1721175032252,-168.44,0.00013128,2]
[332426841,1721175032264,-782.57,0.00013128,2]
[332426842,1721175032273,-16022.95,0.00013128,2]
[332426843,1721175032283,-155.0,0.00013472,2]
[332426844,1721175032292,-519.37080489,0.00013472,2]
[332426845,1721175032302,-280.13964654,0.00013516,2]
[332426846,1721175032312,-718.81436282,0.00013543,2]
[332426847,1721175032321,-250.0,0.00013699,2]
[332426848,1721175032330,-811.47,0.00013699,2]
[332426849,1721175032339,-1117.13858395,0.0001372,2]
[332426850,1721175032349,-195.0976,0.0001376,2]
[332426851,1721175032358,-310.0,0.0001376,2]
[332426852,1721175032367,-1000.0,0.0001376,2]
[332426853,1721175032376,-639.32391483,0.0001379,2]
[332426854,1721175032385,-75877.0,0.0001386,2]
[332426855,1721175032394,-2131.07172,0.0001388,2]
[332426856,1721175032404,-227.38500209,0.00013899,2]
[332426857,1721175032413,-227.38500209,0.00013899,2]
[332426858,1721175032422,-385.10220627,0.00013923,2]
[332426859,1721175032431,-176.67671952,0.00013949,2]
[332426860,1721175032441,-2131.07172,0.0001396,2]
[332426861,1721175032450,-641.60594563,0.00013989,2]
[332426863,1721175032459,-61159.9698944,0.0001399,2]
[332426865,1721175032468,-150.06982541,0.0001399,2]
[332426867,1721175032477,-151.73,0.0001399,2]
[332426869,1721175032489,-151.73,0.0001399,2]
[332426870,1721175032498,-151.73,0.0001399,2]
[332426872,1721175032507,-165.68246615,0.00013997,2]
[332426874,1721175032516,-476.23095611,0.00013999,2]
[332426875,1721175032525,-292402.869576,0.00014,2]
[332426876,1721175032537,-5132.47009967,0.00014,2]
[332426880,1721175037972,-372.94911677,0.00014,2]
[332426881,1721175037984,-1144631.81232579,0.00014,2]
[332426882,1721175037996,-2131.07171,0.00014,2]
[332426883,1721175038128,-2131.07172,0.00014,2]
[332426884,1721175038138,-2131.07172,0.0001403,2]
[332426885,1721175038148,-800.0,0.00014106,2]
[332426886,1721175038158,-2131.07172,0.0001411,2]
[332426887,1721175038167,-255.0,0.00014218,2]
[332426888,1721175038176,-161.27314,0.00014247,2]
[332426889,1721175038187,-431.53343721,0.00014393,2]
[332426890,1721175038197,-177.55,0.00014448,2]
[332426891,1721175038208,-630.4,0.00014674,2]
[332426892,1721175038217,-155.46196403,0.00014849,2]
[332426893,1721175038227,-200.0,0.00014849,2]
[332426894,1721175038241,-300.0,0.00015,2]
[332426895,1721175038250,-161.27314,0.00015068,2]
[332426896,1721175038260,-639.32391483,0.00015105,2]
[332426897,1721175038269,-471.28,0.00015326,2]
[332426898,1721175038278,-14996.14469334,0.0001551,2]
[332426899,1721175038289,-18387.85830666,0.0001551,2]
[332426900,1721175038298,-293.03,0.0001551,2]
[332426901,1721175038307,-5181.0,0.0001551,2]
[332426902,1721175038316,-1136.505,0.0001551,2]
[332426903,1721175038325,-1322.77749777,0.00015579,2]
[332426904,1721175038335,-800.0,0.00015674,2]
[332426905,1721175038345,-158.67,0.00015736,2]
[332426907,1721175038354,-304.79,0.00015776,2]
[332426909,1721175038364,-161.27314,0.0001589,2]
[332426911,1721175038374,-151.73,0.0001593,2]
[332426913,1721175038384,-152.0,0.0001594,2]
[332426915,1721175038394,-151.718,0.0001594,2]
[332426917,1721175038404,-150.0,0.0001594,2]
[332426919,1721175038415,-296.644,0.0001594,2]
[332426921,1721175038425,-279.432,0.0001594,2]
[332426923,1721175038435,-196.411,0.0001594,2]
[332426925,1721175038444,-264.416,0.0001594,2]
[332426926,1721175038453,-150.079,0.0001594,2]
[332426928,1721175038462,-408.585,0.0001594,2]
[332426930,1721175038472,-2377.0,0.0001594,2]
[332426932,1721175038480,-150.0,0.0001594,2]
[332426934,1721175038490,-549.0,0.0001594,2]
[332426936,1721175038502,-3277.0,0.0001594,2]
[332426939,1721175038511,-1990.0,0.0001594,2]
[332426943,1721175038521,-5000.0,0.00016,2]
[332426946,1721175038530,-1017.0,0.00016,2]
[332426949,1721175038539,-177.55,0.00016054,2]
[332426952,1721175038548,-3437.78,0.00016116,2]
[332426955,1721175038558,-1004.35,0.00016116,2]
[332426958,1721175038570,-1751.77,0.00016116,2]
[332426961,1721175038579,-12498.61,0.00016116,2]
[332426964,1721175038588,-483.39,0.00016116,2]
[332426967,1721175038598,-630.4,0.00016304,2]
[332426970,1721175038608,-823.0,0.000164,2]
[332426971,1721175038618,-639.32391483,0.00016431,2]
[332426972,1721175038627,-161.27314,0.00016712,2]
[332426973,1721175038637,-155.31471181,0.00016957,2]
[332426974,1721175038647,-350.0,0.00017,2]
[332426975,1721175038656,-664.0,0.00017233,2]
[332426976,1721175038666,-800.0,0.00017241,2]
[332426977,1721175038676,-401.57927817,0.00017257,2]
[332426978,1721175038688,-196.62196732,0.00017259,2]
[332426979,1721175038698,-161.27314,0.00017534,2]
[332426980,1721175038707,-1460.45803348,0.00017535,2]
[332426981,1721175038717,-304.62275169,0.00017566,2]
[332426982,1721175038726,-471.28,0.0001759,2]
[332426983,1721175038735,-529.3,0.00017596,2]
[332426984,1721175038747,-335.95,0.00017596,2]
[332426985,1721175038756,-411.66,0.00017596,2]
[332426986,1721175038765,-300.93,0.00017596,2]
[332426987,1721175038777,-309.07,0.00017596,2]
[332426988,1721175038786,-310.15,0.00017596,2]
[332426990,1721175038795,-164.78,0.00017596,2]
[332426991,1721175038805,-710.5,0.00017596,2]
[332426993,1721175038814,-150.0,0.00017596,2]
[332426995,1721175038824,-850.46,0.00017596,2]
[332426997,1721175038834,-277.19901678,0.00017599,2]
[332426999,1721175038843,-177.55,0.00017659,2]
[332427001,1721175038853,-304.79,0.00017748,2]
[332427004,1721175038863,-639.32391483,0.00017756,2]
[332427006,1721175038873,-1000.0,0.000178,2]
[332427008,1721175038882,-630.4,0.00017935,2]
[332427010,1721175038892,-419.72,0.00018055,2]
[332427012,1721175038902,-832.8,0.00018055,2]
[332427014,1721175038911,-832.8,0.00018055,2]
[332427016,1721175038921,-419.72,0.00018055,2]
[332427018,1721175038931,-832.8,0.00018055,2]
[332427019,1721175038940,-419.72,0.00018055,2]
[332427021,1721175038950,-832.8,0.00018055,2]
[332427023,1721175038960,-419.72,0.00018055,2]
[332427025,1721175038969,-832.8,0.00018055,2]
[332427027,1721175038979,-419.72,0.00018055,2]
[332427029,1721175038989,-419.72,0.00018055,2]
[332427031,1721175038999,-832.8,0.00018055,2]
[332427033,1721175039009,-419.72,0.00018055,2]
[332427035,1721175039018,-832.8,0.00018055,2]
[332427037,1721175039028,-832.8,0.00018055,2]
[332427039,1721175039037,-419.72,0.00018055,2]
[332427041,1721175039047,-418.1,0.00018055,2]
[332427043,1721175039057,-832.8,0.00018055,2]
[332427045,1721175039067,-1057.01,0.00018192,2]
[332427047,1721175039076,-151.17,0.00018192,2]
[332427049,1721175039086,-683.28,0.00018192,2]
[332427051,1721175039095,-165.12,0.00018314,2]
[332427053,1721175039105,-425.03,0.00018314,2]
[332427055,1721175039114,-150.0,0.00018314,2]
[332427057,1721175039124,-300.0,0.00018314,2]
[332427059,1721175039133,-165.12,0.00018314,2]
[332427061,1721175039143,-150.0,0.00018314,2]
[332427063,1721175039152,-150.0,0.00018314,2]
[332427065,1721175039161,-165.12,0.00018314,2]
[332427067,1721175039170,-152.17,0.00018314,2]
[332427069,1721175039180,-161.27314,0.00018356,2]
[332427071,1721175039189,-156.19,0.00018466,2]
[332427073,1721175039199,-1000.0,0.000187,2]
[332427075,1721175039208,-150.06982541,0.0001877,2]
[332427077,1721175039217,-172679.23754698,0.0001878,2]
[332427080,1721175039227,-111845.2851999,0.00018788,5]
[332427082,1721175039237,-3210.53610124,0.00018788,5]
[332427084,1721175039248,-800.0,0.00018808,2]
[332427086,1721175039257,-150.0,0.00018831,2]
[332427088,1721175039266,-500.0,0.00018847,2]
[332427090,1721175039276,-500.0,0.00018848,2]
[332427092,1721175039285,-200.0,0.00018848,2]
[332427094,1721175039295,-158.67,0.00018883,2]
[332427096,1721175039304,-172.8028876,0.00018887,2]
[332427098,1721175039313,-2000.0,0.000189,2]
[332427100,1721175039323,-544.8215,0.000189,2]
[332427102,1721175039332,-1000.0,0.000189,2]
[332427103,1721175039341,-7749.9334177,0.000189,2]
[332427105,1721175039351,-198.96306482,0.000189,2]
[332427108,1721175039361,-150.0,0.0001894,2]
[332427110,1721175039371,-150.0,0.0001894,2]
[332427112,1721175039383,-150.0,0.0001894,2]
[332427114,1721175039392,-150.06982541,0.0001899,2]
[332427116,1721175039401,-151.73,0.0001899,2]
[332427118,1721175039410,-151.73,0.0001899,2]
[332427120,1721175039420,-151.73,0.0001899,2]
[332427122,1721175039429,-151.73,0.0001899,2]
[332427124,1721175039439,-151.73,0.0001899,2]
[332427125,1721175039448,-151.73,0.0001899,2]
[332427128,1721175039459,-151.73,0.0001899,2]
[332427129,1721175039468,-151.73,0.0001899,2]
[332427131,1721175039477,-151.73,0.0001899,2]
[332427133,1721175039487,-151.73,0.0001899,2]
[332427135,1721175039497,-151.73,0.0001899,2]
[332427137,1721175039507,-151.73,0.0001899,2]
[332427139,1721175039516,-151.73,0.0001899,2]
[332427141,1721175039527,-151.73,0.0001899,2]
[332427143,1721175039538,-151.73,0.0001899,2]
[332427145,1721175039547,-277.36441768,0.00018999,2]
[332427148,1721175039558,-366.75226639,0.00018999,2]
[332427150,1721175039571,-316.69974926,0.00018999,2]
[332427152,1721175039581,-447671.5044107,0.00019,2]
[332427154,1721175039599,-11051.09671202,0.00019,2]
[332427157,1721175039613,-1519.53928881,0.00019,2]
[332427159,1721175039625,-473.3383626,0.00019,2]
[332427161,1721175039637,-1714.02530894,0.00019,2]
[332427163,1721175039650,-1798.35329156,0.00019,2]
[332427165,1721175039661,-600.5,0.00019,2]
[332427239,1721175040327,-643.63253028,0.00019,2]
[332427241,1721175040338,-158180.79394596,0.00019,2]
[332427244,1721175040352,-1465.41185795,0.00019,2]
[332427246,1721175040364,-3063.7,0.00019,2]
[332427248,1721175040375,-1661.8907034,0.00019,2]
[332427250,1721175040386,-1950.0,0.00019,2]
[332427252,1721175040397,-825.15284921,0.00019,2]
[332427254,1721175040408,-1595.00618646,0.00019,2]
[332427256,1721175040420,-32332.34669367,0.00019,2]
[332427258,1721175040432,-1114.04420081,0.00019,2]
[332427260,1721175040443,-4661.7770805,0.00019,2]
[332427262,1721175040454,-600.96056067,0.00019,2]
[332427488,1721175043028,-357.69482547,0.00019,2]
[332427495,1721175043080,-3034.69999998,0.00019,2]
[332427501,1721175043138,-507.53028692,0.00019,2]
[332427806,1721175046209,-155.0,0.00013128,2]
[332427808,1721175046219,-242.6766685,0.00018055,2]
[332427810,1721175046235,-590.1233315,0.00018055,2]
[332427812,1721175046244,-122.34447448,0.00019,2]
[332427817,1721175046290,-622.00001132,0.00019,2]
[332427820,1721175046301,-362.68407531,0.00019,2]
[332427833,1721175046433,-525.7803353,0.00019,2]
[332427835,1721175046445,-40035.45972979,0.00019,2]
[332427837,1721175046456,-3930.81363626,0.00019,2]
[332427839,1721175046467,-429.34971866,0.00019,2]
[332428220,1721175158912,2834.86167244,0.00011199,2]
[332428221,1721175212588,1132.70386003,0.00011199,2]
[332428222,1721175215863,1444.76624288,0.00011199,2]
[332428223,1721175227286,1265.9247165,0.00011199,2]
[332428224,1721175254775,604.08054146,0.00011199,2]
[332428230,1721175300792,624.51640094,0.00011199,2]
[332428233,1721175350375,155.0,0.00011199,2]
[332428234,1721175353415,366.75226639,0.00011199,2]
[332428235,1721175368416,366.75226639,0.00011199,2]
[332428238,1721175495286,685.74697469,0.00011199,2]
[332428244,1721175657012,227.38500209,0.00011199,2]
[332428249,1721175817436,316.33929512,0.00011199,2]
[332428250,1721175820905,156.04927212,0.00011199,2]
[332428262,1721176232095,-237.20245709,0.000118,2]
[332428263,1721176232105,-451.82341854,0.00012202,2]
[332428264,1721176232115,-237.80190822,0.00012273,2]
[332428265,1721176232125,-401.57927817,0.00012314,2]
[332428266,1721176232135,-304.62275169,0.00012314,2]
[332428267,1721176232145,-196.62196732,0.00012314,2]
[332428268,1721176232155,-155.46196403,0.00012314,2]
[332428269,1721176232165,-277.19901678,0.00012314,2]
[332428270,1721176232175,-164.89653503,0.000129,2]
[332428271,1721176232186,-250.0,0.00013,2]
[332428272,1721176232196,-2761.3726,0.00013233,2]
[332428273,1721176232206,-1387.733275,0.00013403,2]
[332428274,1721176232216,-300.0,0.00013573,2]
[332428275,1721176232228,-150.0,0.00013573,2]
[332428276,1721176232238,-155.31471181,0.00013574,2]
[332428277,1721176232247,-68376.56323396,0.00013574,2]
[332428278,1721176232260,-29839.07542776,0.00013574,2]
[332428279,1721176232277,-396.24892489,0.00013574,2]
[332428280,1721176232293,-286.18192272,0.00013574,2]
[332428281,1721176232305,-38928.54119083,0.00013574,2]
[332428282,1721176232315,-718.5363067,0.00013574,2]
[332428283,1721176232325,-151.74,0.0001399,2]
[332428284,1721176232334,-151.74,0.0001399,2]
[332428285,1721176232345,-151.74,0.0001399,2]
[332428286,1721176232354,-151.74,0.0001399,2]
[332428287,1721176232364,-151.74,0.0001399,2]
[332428288,1721176232373,-151.74,0.0001399,2]
[332428289,1721176232383,-151.74,0.0001399,2]
[332428290,1721176232393,-151.74,0.0001399,2]
[332428291,1721176232402,-150.06982542,0.0001399,2]
[332428292,1721176232412,-151.74,0.0001399,2]
[332428293,1721176232421,-150.06982542,0.0001399,2]
[332428294,1721176232431,-151.74,0.0001399,2]
[332428295,1721176232440,-151.74,0.0001399,2]
[332428296,1721176232450,-151.74,0.0001399,2]
[332428297,1721176232460,-151.74,0.0001399,2]
[332428298,1721176232470,-180.2458539,0.00013993,2]
[332428299,1721176232479,-316.69974926,0.00013999,2]
[332428300,1721176232488,-682682.23904942,0.00014,2]
[332428301,1721176232508,-1639.59994948,0.00014,2]
[332428308,1721176238291,-250.0,0.00013724,2]
[332428309,1721176238302,-639.5174802,0.00013904,2]
[332428310,1721176238316,-7110.4159375,0.00013904,2]
[332428311,1721176238326,-42205.27246382,0.00014,2]
[332428312,1721176238349,-331.0,0.00014,2]
[332428313,1721176238464,-1172535.3394852,0.00014,2]
[332428314,1721176238476,-847652.78216643,0.00014,2]
[332428475,1721176240293,-223.75278063,0.00013904,2]
[332428477,1721176240303,-2610.92219244,0.00014,2]
[332428479,1721176240314,-81465.69818906,0.00014,2]
[332428547,1721176241007,-3848.9901654,0.00014,2]
[332428549,1721176241019,-1365.02159675,0.00014,2]
[332428551,1721176241029,-4341.68845553,0.00014,2]
[332428553,1721176241041,-2757.99397552,0.00014,2]
[332428556,1721176241065,-338.56680028,0.00014,2]
[332428558,1721176241077,-388.74123236,0.00014,2]
[332428560,1721176241088,-2241.7781094,0.00014,2]
[332428562,1721176241099,-485.04999978,0.00014,2]
[332428564,1721176241110,-519.87,0.00014,2]
[332428567,1721176241121,-1606.0,0.00014,2]
[332428757,1721176243203,-306.49459693,0.00013904,2]
[332428759,1721176243213,-434.27274875,0.00014,2]
[332428763,1721176243262,-4607.52662093,0.00014,2]
[332429058,1721176246515,-522.93853237,0.00014,2]
[332429059,1721176246528,-301.33416204,0.00014,2]
[332429062,1721176246576,-3404.49953242,0.00014,2]
[332429069,1721176246638,-6723.95799994,0.00014,2]
[332429071,1721176246649,-13690.82341382,0.00014,2]
[332429488,1721176422016,2834.86167244,0.00011199,2]
[332429489,1721176426103,5601.11144692,0.00011199,2]
[332429490,1721176434597,4829.22384462,0.00011199,2]
[332429493,1721176565851,647.71813835,0.00011199,2]
[332429495,1721176621420,163.7587599,0.00011199,2]
[332429496,1721176630852,519.26994235,0.00011199,2]
[332429498,1721176672208,276.8403852,0.00011199,2]
[332429499,1721176678414,516.65425231,0.00011199,2]
[332429500,1721176681799,209.05498001,0.00011199,2]
[332429501,1721176685165,203.30316054,0.00011199,2]
[332429504,1721176692807,331.63513846,0.00011199,2]
[332429505,1721176694008,174.35486347,0.00011199,2]
[332429506,1721176707738,393.45339341,0.00011199,2]
[332429507,1721176707970,203.21171112,0.00011199,2]
[332429511,1721176752401,155.0,0.00011199,2]
[332429512,1721176782541,155.0,0.00011199,2]
[332429518,1721177033296,685.74697469,0.00011199,2]
[332429525,1721177305421,155.0,0.00011199,2]
[332429561,1721177432288,-360.246502,0.00011211,2]
[332429562,1721177432348,-160.853498,0.00011211,2]
[332429563,1721177432357,-164.89653501,0.00012694,2]
[332429564,1721177432367,-250.0,0.00012695,2]
[332429565,1721177432376,-250.0,0.00012695,2]
[332429566,1721177432387,-513.92,0.00012773,2]
[332429567,1721177432396,-294.07,0.00012794,2]
[332429568,1721177432405,-1510.33250793,0.00012861,2]
[332429569,1721177432461,-559.75762178,0.00012861,2]
[332429570,1721177432472,-2952.23987029,0.00012861,2]
[332429571,1721177432482,-200.0,0.00012991,2]
[332429572,1721177432492,-250.0,0.00013,2]
[332429573,1721177432502,-1555.23375712,0.00013128,2]
[332429574,1721177432512,-2654.04,0.00013128,2]
[332429575,1721177432521,-1286.76187843,0.00013128,2]
[332429576,1721177432531,-164.89653501,0.00013247,2]
[332429577,1721177432540,-23900.0,0.0001325,2]
[332429578,1721177432551,-486.08,0.00013383,2]
[332429579,1721177432561,-168.43,0.00013453,2]
[332429580,1721177432571,-521.1,0.00013475,2]
[332429581,1721177432580,-499.99,0.00013475,2]
[332429582,1721177432591,-326.59,0.00013475,2]
[332429583,1721177432601,-150.99,0.00013475,2]
[332429584,1721177432611,-300.0,0.000135,4]
[332429585,1721177432622,-600.0,0.000136,4]
[332429586,1721177432641,-150.99,0.00013638,2]
[332429587,1721177432657,-186.48,0.00013697,2]
[332429588,1721177432674,-250.0,0.00013699,2]
[332429589,1721177432692,-811.4,0.00013699,2]
[332429590,1721177432712,-1670.74,0.00013699,2]
[332429591,1721177432729,-900.0,0.000137,5]
[332429592,1721177432745,-150.0,0.00013735,2]
[332429593,1721177432760,-1300.0,0.000138,5]
[332429594,1721177432778,-164.89653501,0.000138,2]
[332429595,1721177432797,-1716.7885,0.000138,2]
[332429596,1721177432812,-201.37750254,0.000138,2]
[332429597,1721177432827,-218.0,0.0001386,2]
[332429598,1721177432844,-175.29870113,0.00013889,2]
[332429599,1721177432861,-485.43834991,0.0001389,2]
[332429600,1721177432876,-4287.7009,0.000139,2]
[332429601,1721177432893,-283779.3372,0.000139,2]
[332429602,1721177432908,-1600.0,0.000139,5]
[332429603,1721177432923,-169.99561809,0.00013904,2]
[332429604,1721177432938,-174.58989142,0.00013904,2]
[332429605,1721177432953,-1005.06491984,0.00013964,2]
[332429606,1721177432969,-161.27314,0.00013973,2]
[332429607,1721177432984,-776.88428348,0.00013989,2]
[332429608,1721177432999,-163.83,0.0001399,2]
[332429609,1721177433016,-163.83,0.0001399,2]
[332429610,1721177433031,-163.83,0.0001399,2]
[332429611,1721177433045,-801.19638266,0.00013999,2]
[332429612,1721177433060,-5166.62227848,0.00013999,2]
[332429613,1721177433075,-274171.62931529,0.00014,2]
[332429614,1721177433095,-7447.32319545,0.00014,2]
[332429615,1721177433112,-5100.0,0.00014,2]
[332429616,1721177433129,-2597.6944,0.00014,2]
[332429628,1721177438600,-301.52429435,0.00014,2]
[332429629,1721177438654,-1172535.3394852,0.00014,2]
[332429630,1721177438667,-847652.78216643,0.00014,2]
[332429631,1721177438682,-366.86617053,0.00014,2]
[332429632,1721177438709,-1189.17655856,0.00014,2]
[332429765,1721177440402,-6578.06474268,0.00014,2]
[332429767,1721177440413,-1290.87499997,0.00014,2]
[332429769,1721177440425,-347.09702891,0.00014,2]
[332429771,1721177440437,-1596.88006637,0.00014,2]
[332429773,1721177440448,-2317.16226982,0.00014,2]
[332429776,1721177440458,-340.78144659,0.00014,2]
[332429778,1721177440469,-574.61696002,0.00014,2]
[332429780,1721177440480,-776.11930093,0.00014,2]
[332429782,1721177440491,-1621512.54891967,0.00014,2]
[332429784,1721177440500,-198.96306482,0.0001415,2]
[332429786,1721177440509,-308.65577954,0.0001425,2]
[332429788,1721177440518,-1613.4829,0.0001435,2]
[332429790,1721177440528,-295.69,0.00014365,2]
[332429792,1721177440537,-513.92,0.0001437,2]
[332429794,1721177440546,-294.07,0.00014394,2]
[332429796,1721177440555,-483.39,0.00014504,2]
[332429798,1721177440564,-21948.28,0.00014504,2]
[332429800,1721177440574,-9585.15,0.00014504,2]
[332429802,1721177440583,-1751.77,0.00014504,2]
[332429804,1721177440593,-1105.57,0.00014504,2]
[332429806,1721177440602,-1004.35,0.00014504,2]
[332429808,1721177440611,-1613.48291,0.0001467,2]
[332429810,1721177440620,-161.27314,0.00014795,2]
[332429812,1721177440629,-255.0,0.00014847,2]
[332429814,1721177440638,-1613.48291,0.0001498,2]
[332429816,1721177440648,-300.0,0.00015,2]
[332429818,1721177440657,-201.37750251,0.00015007,2]
[332429820,1721177440666,-486.08,0.00015056,2]
[332429822,1721177440675,-1613.48291,0.000153,2]
[332429824,1721177440684,-5667.90043239,0.0001547,2]
[332429826,1721177440695,-619.0,0.00015567,2]
[332429828,1721177440704,-1613.48291,0.000156,2]
[332429830,1721177440713,-161.27314,0.00015616,2]
[332429832,1721177440722,-521.1,0.00015739,2]
[332429834,1721177440731,-1613.48291,0.0001591,2]
[332429836,1721177440740,-513.92,0.00015967,2]
[332429837,1721177440749,-294.07,0.00015993,2]
[332429839,1721177440758,-5000.0,0.00016,2]
[332429841,1721177440768,-308.65577953,0.00016023,2]
[332429844,1721177440777,-823.0,0.000161,2]
[332429846,1721177440786,-408.585,0.0001615,2]
[332429847,1721177440795,-150.0,0.0001615,2]
[332429849,1721177440804,-549.0,0.0001615,2]
[332429851,1721177440814,-2377.0,0.0001615,2]
[332429853,1721177440823,-1990.0,0.0001615,2]
[332429855,1721177440832,-3277.0,0.0001615,2]
[332429857,1721177440841,-1136.505,0.0001615,2]
[332429859,1721177440850,-152.0,0.0001615,2]
[332429861,1721177440859,-5181.0,0.0001615,2]
[332429863,1721177440870,-151.718,0.0001615,2]
[332429865,1721177440879,-293.03,0.0001615,2]
[332429867,1721177440888,-8135.30714434,0.0001615,2]
[332429882,1721177441019,-561.97850452,0.0001615,2]
[332429884,1721177441030,-312.3160075,0.0001615,2]
[332429886,1721177441041,-2371.47496843,0.0001615,2]
[332429888,1721177441056,-1699.69860153,0.0001615,2]
[332429891,1721177441072,-155.0,0.00015287,2]
[332429893,1721177441082,-20303.22777368,0.0001615,2]
[332429895,1721177441091,-150.0,0.0001615,2]
[332429897,1721177441099,-196.411,0.0001615,2]
[332429899,1721177441108,-437.169,0.0001615,2]
[332429901,1721177441117,-279.432,0.0001615,2]
[332429903,1721177441126,-296.644,0.0001615,2]
[332429905,1721177441135,-264.416,0.0001615,2]
[332429906,1721177441144,-150.271,0.0001615,2]
[332429908,1721177441154,-295.69,0.0001616,2]
[332429910,1721177441163,-1322.77749777,0.00016172,2]
[332429912,1721177441173,-201.37750251,0.00016215,2]
[332429914,1721177441182,-161.27314,0.00016438,2]
[332429916,1721177441193,-486.08,0.00016729,2]
[332429918,1721177441203,-474.69895211,0.00016808,2]
[332429920,1721177441212,-1062.63213393,0.0001689,2]
[332429923,1721177441227,-4103.99014453,0.0001689,2]
[332429924,1721177441236,-350.0,0.00017,2]
[332429927,1721177441245,-832.8,0.00017082,2]
[332429929,1721177441255,-1051.87,0.00017096,2]
[332429931,1721177441264,-231.98,0.00017096,2]
[332429932,1721177441273,-263.75418329,0.00017159,2]
[332429934,1721177441282,-431.61894751,0.00017159,2]
[332429936,1721177441291,-288.53700053,0.00017253,2]
[332429938,1721177441300,-268.20670839,0.00017253,2]
[332429940,1721177441310,-205.75131637,0.00017253,2]
[332429942,1721177441319,-161.27314,0.0001726,2]
[332429944,1721177441329,-201.37750251,0.00017422,2]
[332429946,1721177441338,-483.47,0.00017448,2]
[332429949,1721177441351,-150.0,0.00017448,2]
[332429951,1721177441360,-355.4,0.00017448,2]
[332429953,1721177441369,-150.0,0.00017448,2]
[332429955,1721177441379,-150.0,0.00017448,2]
[332429956,1721177441389,-330.0,0.00017448,2]